bitfinex-derivatives/quotes_ETHF0:USTF0_20220108
["timestamp","ask_amount","ask_price","bid_price","bid_amount"]
[1641626245267,1.05693471,3218.3,3217.5,1.55348735]
[1641626245473,1.05693471,3218.3,3217.6,0.264788]
[1641626245665,1.05693471,3218.3,3217.6,0.860888]
[1641626245866,1.05693471,3218.3,3217.7,3.05335221]
[1641626246067,1.05693471,3218.3,3217.8,0.264788]
[1641626246465,1.05693471,3218.3,3218.2,2.00479]
[1641626246666,4.0,3218.3,3218.2,2.00479]
[1641626248165,4.0,3218.3,3218.2,2.86895311]
[1641626250969,4.0,3218.3,3218.2,2.00479]
[1641626251570,8.971646,3218.3,3218.2,2.00479]
[1641626251769,9.887946,3218.3,3218.2,2.00479]
[1641626259079,9.887946,3218.3,3218.2,1.70479]
[1641626259479,9.887946,3218.3,3218.2,1.60479]
[1641626259880,23.277946,3218.3,3218.2,1.60479]
[1641626262786,24.06868003,3218.3,3218.2,1.60479]
[1641626263086,25.56868003,3218.3,3217.9,2.00479]
[1641626263286,24.06868003,3218.3,3217.9,2.00479]
[1641626263489,1.5,3218.1,3217.9,2.00479]
[1641626263889,18.362032,3218.0,3217.9,2.00479]
[1641626264688,18.362032,3218.0,3217.9,1.70479]
[1641626267489,18.362032,3218.0,3217.4,3.323271]
[1641626267490,20.70673317,3218.0,3217.4,1.318481]
[1641626267689,4.0,3217.5,3217.4,1.318481]
[1641626267889,4.9551,3217.5,3217.4,1.318481]
[1641626268090,9.927982,3217.5,3217.4,1.318481]
[1641626268290,9.927982,3217.5,3216.9,2.07997788]
[1641626268495,4.0,3217.0,3216.9,2.07997788]
[1641626269892,4.0,3217.0,3216.9,1.31223074]
[1641626271695,4.0,3217.0,3216.9,2.57609487]
[1641626273396,4.0,3217.0,3216.9,1.80834773]
[1641626273796,2.69469,3217.6,3216.9,1.80834773]
[1641626274098,4.0,3217.1,3216.9,1.80834773]
[1641626275697,4.0,3217.1,3216.9,1.31223074]
[1641626275897,4.0,3217.1,3216.9,2.08188448]
[1641626277799,4.0,3217.1,3216.9,0.76965374]
[1641626278201,4.973577,3217.0,3216.9,0.76965374]
[1641626278801,18.363577,3217.0,3216.9,0.76965374]
[1641626279001,18.363577,3217.0,3216.5,2.00479]
[1641626279203,4.0,3216.6,3216.5,2.00479]
[1641626279401,5.286048,3216.6,3216.5,2.00479]
[1641626279602,10.260321,3216.6,3216.5,2.00479]
[1641626282411,9.841873,3216.6,3216.5,2.00479]
[1641626282912,9.841873,3216.6,3216.5,2.269578]
[1641626283913,9.841873,3216.6,3216.5,2.00479]
[1641626284515,10.260321,3216.6,3216.5,2.00479]
[1641626286519,9.841873,3216.6,3216.5,2.00479]
[1641626288419,5.841873,3216.6,3216.5,2.00479]
[1641626290021,0.8676,3216.6,3216.5,2.00479]
[1641626290224,4.0,3217.0,3216.5,2.00479]
[1641626290422,0.9598,3216.6,3216.5,2.00479]
[1641626290822,5.934073,3216.6,3216.5,2.00479]
[1641626292326,5.934073,3216.6,3216.2,1.91553352]
[1641626292526,4.0,3216.3,3216.2,1.91553352]
[1641626292726,4.0,3216.3,3216.2,1.27474652]
[1641626298734,4.6194,3216.3,3216.2,1.27474652]
[1641626301337,4.0,3216.3,3216.2,1.27474652]
[1641626302539,0.471,3216.6,3216.2,1.27474652]
[1641626302939,0.889448,3216.6,3216.2,1.27474652]
[1641626303239,4.974505,3216.5,3216.2,1.27474652]
[1641626303439,5.699505,3216.5,3216.2,1.27474652]
[1641626303640,4.0,3216.4,3216.2,1.27474652]
[1641626303840,4.0,3216.4,3216.0,2.00479]
[1641626304843,4.0,3217.0,3216.1,2.45016613]
[1641626305041,4.0,3216.9,3216.1,0.95016613]
[1641626305241,0.418448,3216.8,3216.1,0.95016613]
[1641626305442,5.392799,3216.8,3216.1,0.95016613]
[1641626305941,4.0,3216.4,3216.1,0.95016613]
[1641626306143,4.9445,3216.4,3216.1,0.95016613]
[1641626307143,0.418448,3216.8,3216.1,2.45016613]
[1641626307346,4.0,3216.9,3216.1,3.22156613]
[1641626307542,2.79410469,3217.1,3216.1,3.22156613]
[1641626307743,2.79410469,3217.1,3216.2,0.264788]
[1641626308144,4.974196,3217.0,3216.2,0.264788]
[1641626308944,4.974196,3217.0,3216.3,1.5]
[1641626309144,4.78931469,3217.3,3216.8,1.5]
[1641626309344,0.78931469,3217.3,3216.9,0.640787]
[1641626309543,0.78931469,3217.3,3216.9,0.264788]
[1641626309948,2.00479,3217.5,3216.9,0.264788]
[1641626310144,2.00479,3217.5,3217.0,1.49923155]
[1641626310544,2.00479,3217.5,3217.1,0.264788]
[1641626311350,2.00479,3217.5,3217.2,0.640787]
[1641626312646,4.0,3217.3,3217.0,3.50402155]
[1641626314847,4.0,3217.3,3217.0,3.76880955]
[1641626318755,4.418448,3217.3,3217.0,3.76880955]
[1641626319156,4.0,3217.3,3217.0,3.76880955]
[1641626326572,4.78931469,3217.3,3217.0,3.76880955]
[1641626329575,4.0,3217.3,3217.0,3.76880955]
[1641626329776,4.0,3217.3,3217.0,3.50402155]
[1641626330378,4.78931469,3217.3,3217.0,3.50402155]
[1641626332177,0.78931469,3217.3,3217.0,5.91002155]
[1641626332377,0.78931469,3217.3,3217.2,1.5]
[1641626332577,2.00479,3217.5,3217.2,1.5]
[1641626332777,2.00479,3217.5,3217.3,0.264788]
[1641626333979,2.00479,3217.5,3217.3,1.764788]
[1641626335981,0.418448,3217.6,3217.0,4.41002155]
[1641626336783,1.05693471,3218.0,3217.1,1.5]
[1641626336984,1.05693471,3218.0,3217.0,4.67480955]
[1641626337185,1.05693471,3218.0,3217.2,1.5]
[1641626337685,1.05693471,3218.0,3217.0,3.50402155]
[1641626337887,1.05693471,3218.0,3217.8,1.5]
[1641626338086,1.05693471,3218.0,3217.9,0.905575]
[1641626338286,1.96673053,3218.7,3217.9,0.905575]
[1641626338485,0.36405243,3218.0,3217.9,0.905575]
[1641626338685,5.243e-05,3218.0,3217.9,0.905575]
[1641626339086,5.243e-05,3218.0,3217.9,3.85924917]
[1641626339286,5.243e-05,3218.0,3217.9,2.95367417]
[1641626340088,0.418448,3218.2,3217.9,2.95367417]
[1641626341788,0.418448,3218.2,3217.9,3.21846217]
[1641626342391,0.418448,3218.2,3217.9,2.95367417]
[1641626343294,4.0,3218.3,3217.9,2.95367417]
[1641626343893,4.418448,3218.3,3217.9,2.95367417]
[1641626345797,2.00479,3218.8,3217.9,2.95367417]
[1641626345995,2.00479,3218.8,3218.0,0.264788]
[1641626347598,2.00479,3218.8,3218.4,1.5]
[1641626347796,2.00479,3218.8,3218.5,0.905575]
[1641626348697,2.00479,3218.8,3218.6,0.99056153]
[1641626349098,1.05356888,3219.0,3218.7,0.264788]
[1641626350298,1.05356888,3219.2,3218.7,0.264788]
[1641626352903,1.05356888,3219.2,3219.1,1.5]
[1641626353101,1.5780221,3219.7,3219.2,0.640787]
[1641626353300,1.5780221,3219.7,3219.6,2.00479]
[1641626353503,1.5780221,3219.7,3219.6,3.50479]
[1641626353701,1.5780221,3219.7,3219.6,3.769578]
[1641626353901,1.5780221,3219.7,3219.6,3.38140891]
[1641626354500,1.5780221,3219.7,3219.6,4.88140891]
[1641626354902,2.61993149,3220.2,3219.6,4.88140891]
[1641626355104,2.00479,3220.5,3219.6,4.88140891]
[1641626356508,2.00479,3220.5,3219.6,3.38140891]
[1641626356706,2.00479,3220.5,3219.9,1.55231295]
[1641626356906,2.00479,3220.5,3219.9,2.39041295]
[1641626357106,2.00479,3220.5,3220.0,0.905575]
[1641626357606,2.00479,3220.5,3220.1,1.08284661]
[1641626358007,2.00479,3220.5,3220.2,0.264788]
[1641626360212,2.423238,3220.5,3220.1,1.08284661]
[1641626360411,3.217638,3220.5,3220.1,1.08284661]
[1641626361014,0.33058835,3220.4,3220.1,1.08284661]
[1641626361320,0.33058835,3220.4,3220.1,0.17770399]
[1641626361615,4.33058835,3220.4,3220.1,0.17770399]
[1641626363015,4.0,3220.4,3220.1,0.17770399]
[1641626363718,2.79919,3220.5,3220.1,0.17770399]
[1641626364120,3.84906919,3220.5,3220.1,0.17770399]
[1641626364518,4.26751719,3220.5,3220.1,0.17770399]
[1641626365423,2.79919,3220.5,3220.1,0.44249199]
[1641626365721,2.00479,3220.5,3220.1,0.44249199]
[1641626366422,1.04987919,3220.7,3220.1,0.44249199]
[1641626366623,1.04987919,3220.8,3220.1,0.44249199]
[1641626367521,1.04987919,3220.8,3220.6,2.00479]
[1641626367822,1.04987919,3220.8,3220.7,0.905575]
[1641626368023,1.04987919,3221.0,3220.7,2.01499491]
[1641626369123,1.36786442,3221.2,3220.8,1.5]
[1641626369422,2.23916191,3221.7,3221.1,3.50479]
[1641626369622,2.23916191,3221.7,3221.1,4.19199]
[1641626369823,2.23916191,3221.7,3221.2,0.264788]
[1641626370224,1.5780221,3221.7,3221.2,1.58260309]
[1641626370725,26.33679,3222.2,3221.2,1.58260309]
[1641626370924,2.00479,3222.2,3221.2,1.58260309]
[1641626372025,2.00479,3222.5,3221.2,1.58260309]
[1641626372026,2.00479,3222.5,3221.5,1.5]
[1641626372225,2.00479,3222.5,3221.6,1.5]
[1641626372426,2.00479,3222.5,3221.8,1.55139059]
[1641626372624,2.00479,3222.5,3221.9,0.905575]
[1641626373025,0.418448,3222.4,3221.9,0.905575]
[1641626373226,0.418448,3222.4,3222.0,1.28168728]
[1641626373426,0.418448,3222.4,3222.1,2.00479]
[1641626374227,4.0,3222.3,3222.0,1.28168728]
[1641626374426,1.5,3222.2,3221.1,2.00479]
[1641626374626,4.0,3221.6,3221.1,2.00479]
[1641626374925,4.9126,3221.6,3221.1,2.00479]
[1641626375125,5.331048,3221.6,3221.1,2.00479]
[1641626375325,2.00479,3221.5,3221.2,1.02233762]
[1641626376829,2.00479,3221.5,3221.3,0.264788]
[1641626377028,6.00479,3221.5,3221.3,0.264788]
[1641626377227,6.00479,3221.5,3221.2,1.02233762]
[1641626379932,7.50479,3221.5,3220.5,2.00479]
[1641626380333,4.0,3220.9,3220.5,2.00479]
[1641626380634,0.8013,3221.1,3220.5,2.00479]
[1641626380834,4.0,3220.8,3220.5,2.00479]
[1641626381435,0.418448,3220.8,3220.5,2.00479]
[1641626381634,2.00479,3221.0,3220.5,2.00479]
[1641626382236,2.00479,3221.0,3220.5,2.269578]
[1641626382837,2.00479,3221.0,3220.6,1.10308049]
[1641626384039,2.00479,3221.0,3220.7,0.264788]
[1641626384842,2.00479,3221.5,3220.7,0.264788]
[1641626385142,2.00479,3221.5,3220.7,1.764788]
[1641626385344,2.00479,3221.5,3220.7,3.31672513]
[1641626386243,0.418448,3221.4,3220.8,1.5]
[1641626386644,0.418448,3221.4,3220.8,1.764788]
[1641626386844,2.00479,3221.5,3220.8,1.764788]
[1641626388044,2.00479,3221.7,3220.8,1.764788]
[1641626388045,2.00479,3221.7,3221.3,1.5]
[1641626388246,1.04642006,3222.5,3221.6,1.5]
[1641626388446,1.04642006,3222.5,3221.6,2.0907]
[1641626389048,1.04642006,3222.5,3221.7,1.45197962]
[1641626389449,3.05121006,3222.5,3221.8,2.269578]
[1641626390255,3.05121006,3222.5,3221.9,0.640787]
[1641626390256,2.00479,3222.5,3221.9,0.640787]
[1641626390652,2.00479,3222.5,3222.0,0.264788]
[1641626391852,2.00479,3222.5,3222.1,1.55125823]
[1641626392051,2.00479,3222.5,3222.2,0.264788]
[1641626392552,0.418448,3222.4,3222.1,1.55125823]
[1641626392751,0.418448,3222.4,3222.0,1.53205325]
[1641626392952,2.00479,3222.5,3222.0,1.53205325]
[1641626395158,2.00479,3222.5,3222.1,0.264788]
[1641626398659,2.423238,3222.5,3222.0,1.53205325]
[1641626398859,5.5,3222.1,3221.0,27.21450226]
[1641626399159,4.0,3221.6,3220.3,1.55195399]
[1641626399361,4.843,3221.6,3220.3,1.55195399]
[1641626399559,2.00479,3220.4,3220.3,1.55195399]
[1641626399758,2.96119,3220.4,3220.3,2.19274099]
[1641626402162,2.00479,3220.4,3220.3,2.45752899]
[1641626402361,2.00479,3220.8,3220.3,3.95752899]
[1641626402564,2.00479,3220.8,3220.3,3.19902899]
[1641626403261,2.423238,3220.8,3220.3,2.93424099]
[1641626403662,2.00479,3220.8,3220.3,2.93424099]
[1641626403861,2.00479,3220.8,3220.3,2.19274099]
[1641626406664,2.00479,3220.8,3220.4,0.264788]
[1641626406865,2.00479,3220.8,3220.6,1.5]
[1641626407064,2.00479,3220.8,3220.5,0.264788]
[1641626407866,2.00479,3220.8,3220.3,2.19274099]
[1641626409068,2.00479,3220.8,3220.3,2.45752899]
[1641626412982,2.00479,3221.2,3220.3,2.45752899]
[1641626413280,2.00479,3221.2,3220.3,3.20412899]
[1641626413880,4.0,3221.1,3220.3,2.29855399]
[1641626414080,5.5,3220.6,3220.3,0.7466]
[1641626414280,5.5,3220.6,3219.7,1.55239488]
[1641626414281,6.2654,3220.6,3219.7,1.55239488]
[1641626414483,6.2654,3220.6,3219.7,2.31093635]
[1641626414682,4.0,3220.0,3219.7,0.75854147]
[1641626414883,4.0,3220.0,3219.7,0.09934147]
[1641626415083,1.5,3219.8,3219.2,1.27849302]
[1641626415385,5.5,3219.4,3219.2,1.27849302]
[1641626415586,5.5,3219.4,3218.9,1.5387449]
[1641626415587,2.00479,3219.3,3218.9,1.5387449]
[1641626415984,0.418448,3219.2,3218.9,1.5387449]
[1641626416184,0.418448,3219.2,3218.5,3.84682561]
[1641626416385,0.418448,3219.2,3218.5,1.27751494]
[1641626416784,0.418448,3219.2,3218.6,0.640787]
[1641626417385,2.00479,3219.3,3218.6,0.905575]
[1641626418585,0.418448,3219.2,3218.6,0.905575]
[1641626422093,0.418448,3219.2,3218.5,2.00479]
[1641626422694,0.418448,3219.2,3218.6,0.640787]
[1641626423295,0.418448,3219.2,3218.6,2.19372913]
[1641626424896,0.418448,3219.2,3218.6,2.45851713]
[1641626427298,0.418448,3219.2,3218.6,1.81773013]
[1641626427899,0.418448,3219.2,3218.6,2.45851713]
[1641626436610,0.418448,3219.2,3218.6,2.19372913]
[1641626437310,2.00479,3219.3,3218.6,2.19372913]
[1641626437711,2.00479,3219.3,3218.7,0.264788]
[1641626437912,2.00479,3219.3,3218.7,1.7994427]
[1641626440116,2.423238,3219.3,3218.7,1.7994427]
[1641626442519,2.00479,3219.6,3218.7,3.9684427]
[1641626443919,2.00479,3219.6,3219.1,2.00479]
[1641626444120,2.00479,3219.6,3219.2,0.264788]
[1641626444522,2.00479,3219.6,3219.2,1.0456588]
[1641626444726,2.00479,3219.6,3219.3,0.640787]
[1641626445531,2.00479,3219.6,3219.4,0.264788]
[1641626450935,2.00479,3219.6,3219.4,1.164888]
[1641626451137,25.50359,3220.2,3219.4,1.164888]
[1641626451339,0.418448,3220.1,3219.4,1.164888]
[1641626452938,2.00479,3220.2,3219.4,1.164888]
[1641626453938,2.00479,3220.2,3219.6,2.00479]
[1641626454139,2.423238,3220.2,3219.6,2.00479]
[1641626454639,2.423238,3220.2,3219.6,2.269578]
[1641626456442,2.00479,3220.2,3219.6,2.269578]
[1641626457743,0.418448,3220.1,3219.6,2.00479]
[1641626457945,1.194448,3220.1,3219.6,2.00479]
[1641626458946,2.2875427,3220.0,3219.6,2.00479]
[1641626460145,0.7875427,3220.0,3219.6,2.00479]
[1641626460345,2.2875427,3220.0,3219.3,0.640787]
[1641626460548,35.58858399,3219.9,3219.2,0.7808708]
[1641626462849,0.7875427,3219.8,3219.2,0.7808708]
[1641626464049,0.7875427,3219.8,3219.2,1.4216578]
[1641626466653,0.7875427,3219.8,3219.2,0.7808708]
[1641626468256,0.7875427,3219.7,3219.2,0.7808708]
[1641626468455,2.2875427,3219.7,3219.2,0.7808708]
[1641626468855,0.7875427,3219.7,3219.2,0.7808708]
[1641626469255,0.7875427,3219.5,3219.2,1.4216578]
[1641626469655,0.7875427,3219.5,3219.2,0.7808708]
[1641626471359,0.7875427,3219.5,3219.2,1.4216578]
[1641626474061,0.7875427,3219.4,3219.2,0.7808708]
[1641626475163,0.7875427,3219.3,3219.2,0.7808708]
[1641626476062,0.7875427,3219.4,3219.2,0.7808708]
[1641626477965,0.7875427,3219.4,3219.2,1.54807657]
[1641626478967,0.7875427,3219.4,3219.2,0.7808708]
[1641626480069,0.7875427,3219.5,3219.2,1.54807657]
[1641626480269,0.7875427,3219.5,3219.3,0.264788]
[1641626481270,0.34734622,3219.8,3219.3,0.264788]
[1641626481271,0.7875427,3219.6,3219.3,1.03199377]
[1641626483171,0.7875427,3219.5,3219.3,0.264788]
[1641626484574,0.7875427,3219.6,3219.3,1.03199377]
[1641626485876,0.7875427,3219.6,3219.5,1.55249851]
[1641626486078,0.7875427,3219.6,3219.5,1.81728651]
[1641626486479,0.7875427,3219.6,3219.5,3.82207651]
[1641626487080,0.7875427,3219.6,3219.5,3.55728851]
[1641626487280,0.7875427,3219.7,3219.5,3.55728851]
[1641626488080,0.7875427,3219.6,3219.5,3.55728851]
[1641626492491,0.7875427,3219.7,3219.5,4.82032051]
[1641626492890,0.7875427,3219.7,3219.5,4.32449428]
[1641626493091,0.7875427,3219.7,3219.5,4.58928228]
[1641626496191,0.7875427,3219.7,3219.5,3.82207651]
[1641626497193,0.7875427,3219.7,3219.5,4.58928228]
[1641626501301,0.7875427,3219.7,3219.6,1.26303241]
[1641626502302,0.7875427,3219.7,3219.5,4.32449428]
[1641626502502,1.5313427,3219.7,3219.5,4.32449428]
[1641626502704,1.5313427,3219.7,3219.5,2.31970428]
[1641626502904,0.7438,3219.7,3219.5,2.31970428]
[1641626503105,1.79022006,3219.7,3219.5,1.55249851]
[1641626503505,1.5,3219.6,3219.4,0.76720577]
[1641626504409,2.89376979,3219.6,3219.2,0.76720577]
[1641626504609,6.00479,3219.3,3219.2,0.76720577]
[1641626505811,6.00479,3219.3,3218.9,0.76720577]
[1641626506012,0.418448,3219.2,3218.9,0.76720577]
[1641626507412,0.79228031,3219.0,3218.8,1.26312133]
[1641626507614,0.79228031,3219.0,3218.8,1.90390833]
[1641626508011,0.79228031,3219.0,3218.8,1.26312133]
[1641626513518,0.79228031,3219.0,3218.7,2.32009967]
[1641626515222,1.21072831,3219.1,3218.7,2.32009967]
[1641626515423,0.79228031,3219.1,3218.7,2.91529967]
[1641626516125,0.79228031,3219.1,3218.8,1.26311729]
[1641626521333,0.79228031,3219.1,3218.8,1.52790529]
[1641626522136,0.79228031,3219.1,3218.8,1.03199377]
[1641626523040,0.79228031,3219.2,3218.9,1.26309246]
[1641626523238,4.0,3219.1,3218.9,1.26309246]
[1641626523839,4.0,3219.1,3218.9,0.76720577]
[1641626524142,4.79228031,3219.1,3218.8,0.76720577]
[1641626526042,4.79228031,3219.1,3218.7,2.32009967]
[1641626526440,4.79228031,3219.1,3218.7,2.58488767]
[1641626526840,0.79228031,3219.1,3218.7,2.58488767]
[1641626528444,0.79228031,3219.2,3218.9,0.76720577]
[1641626529442,0.79228031,3219.2,3219.0,0.264788]
[1641626529642,0.79228031,3219.2,3219.1,1.55271064]
[1641626530342,0.79228031,3219.2,3219.1,2.8185429]
[1641626530941,0.35153392,3219.3,3219.1,5.31922589]
[1641626531143,0.79228031,3219.6,3219.1,5.31922589]
[1641626531342,0.79228031,3219.6,3219.2,0.264788]
[1641626531542,0.79228031,3219.6,3219.5,1.5524961]
[1641626531742,1.5780221,3220.3,3219.5,3.8940841]
[1641626531944,1.5780221,3220.3,3220.0,1.5]
[1641626532241,1.5780221,3220.3,3220.2,3.05189137]
[1641626532442,1.5780221,3220.5,3220.2,2.44469137]
[1641626532842,1.5780221,3220.5,3220.3,0.264788]
[1641626533044,1.5780221,3220.5,3220.4,2.00479]
[1641626533644,1.5780221,3220.5,3220.4,2.645577]
[1641626534244,1.5780221,3220.5,3220.4,3.48446639]
[1641626534443,4.24374554,3221.3,3220.4,3.48446639]
[1641626535646,2.66572344,3221.3,3220.4,3.48446639]
[1641626536646,2.00479,3221.3,3220.4,3.48446639]
[1641626541152,2.00479,3221.3,3220.9,2.00479]
[1641626541352,2.00479,3221.3,3221.0,1.42922501]
[1641626541550,32.71993259,3221.5,3221.0,1.69401301]
[1641626541753,32.71993259,3221.5,3221.1,0.640787]
[1641626542754,0.418448,3221.6,3221.1,0.640787]
[1641626543355,2.00479,3221.7,3221.2,0.264788]
[1641626544158,2.00479,3221.7,3221.1,0.640787]
[1641626544359,0.418448,3221.6,3221.0,1.42922501]
[1641626544861,4.0,3221.4,3221.0,1.42922501]
[1641626545058,2.00479,3221.3,3221.0,1.42922501]
[1641626546960,2.00479,3221.3,3221.0,0.52932283]
[1641626548159,2.00479,3221.3,3221.0,1.17010983]
[1641626548760,1.05256287,3221.2,3221.0,1.17010983]
[1641626549561,3.05735287,3221.3,3221.0,1.17010983]
[1641626550665,2.00479,3221.3,3221.0,1.17010983]
[1641626552665,0.78912241,3221.2,3221.0,1.17010983]
[1641626554465,2.79391241,3221.3,3221.0,1.17010983]
[1641626555968,2.00479,3221.3,3221.0,1.17010983]
[1641626557569,2.423238,3221.3,3221.0,1.17010983]
[1641626557969,2.00479,3221.3,3221.0,1.17010983]
[1641626559671,2.00479,3221.3,3221.0,0.52932283]
[1641626559672,2.423238,3221.3,3221.0,0.52932283]
[1641626559871,2.00479,3221.3,3221.0,0.52932283]
[1641626560275,2.00479,3221.3,3221.0,2.0810962]
[1641626561073,2.00479,3221.3,3221.0,2.3458842]
[1641626561875,2.00479,3221.3,3221.0,2.0810962]
[1641626562475,2.00479,3221.3,3221.1,1.0444198]
[1641626563075,2.00479,3221.3,3221.0,0.52932283]
[1641626563076,6.00479,3221.3,3221.0,0.52932283]
[1641626563276,2.00479,3221.2,3221.0,0.52932283]
[1641626564278,2.79349955,3221.2,3221.0,0.52932283]
[1641626564678,2.79349955,3221.2,3220.4,3.24578993]
[1641626564679,1.5,3221.1,3220.4,3.24578993]
[1641626564876,1.5,3221.1,3220.4,2.00479]
[1641626565078,6.467247,3221.1,3220.4,2.00479]
[1641626565279,2.00479,3220.8,3220.4,2.00479]
[1641626565878,0.418448,3220.7,3220.4,2.00479]
[1641626569991,2.79346829,3220.8,3220.4,2.00479]
[1641626571395,2.423238,3220.8,3220.4,2.00479]
[1641626572495,3.21191629,3220.8,3220.4,2.00479]
[1641626572696,2.79346829,3220.8,3220.4,2.00479]
[1641626573096,2.79346829,3220.8,3220.5,0.264788]
[1641626574095,2.79346829,3220.8,3220.6,0.86190223]
[1641626575295,2.79346829,3220.8,3220.7,0.264788]
[1641626575498,2.79346829,3220.8,3220.7,1.81673235]
[1641626576297,2.00479,3220.8,3220.7,1.81673235]
[1641626576497,0.78867829,3221.1,3220.7,1.81673235]
[1641626577500,2.79346829,3221.2,3220.7,1.81673235]
[1641626578301,3.21191629,3221.2,3220.7,1.55194435]
[1641626578501,3.21191629,3221.2,3220.6,0.86190223]
[1641626578702,3.79041629,3221.2,3220.6,0.86190223]
[1641626579703,4.0,3221.0,3220.6,0.86190223]
[1641626580408,4.78867829,3221.0,3220.6,0.86190223]
[1641626580606,6.28867829,3221.0,3220.6,0.86190223]
[1641626580803,4.78867829,3221.0,3220.6,0.86190223]
[1641626581406,2.00479,3220.8,3220.6,0.86190223]
[1641626582806,0.79007275,3220.7,3220.6,0.86190223]
[1641626583608,0.30530276,3220.7,3220.6,0.86190223]
[1641626586812,1.35691549,3220.7,3220.6,0.86190223]
[1641626587310,1.35691549,3220.7,3220.6,2.41384177]
[1641626587511,1.35691549,3220.7,3220.6,2.67862977]
[1641626587512,0.30530276,3220.7,3220.6,2.67862977]
[1641626588517,0.79126177,3220.8,3220.6,2.67862977]
[1641626588713,0.79126177,3220.8,3220.6,3.50882977]
[1641626589314,0.79126177,3220.8,3220.6,3.24404177]
[1641626589914,0.79126177,3220.9,3220.6,3.24404177]
[1641626590116,0.79126177,3220.9,3220.6,2.41384177]
[1641626590914,0.79126177,3220.7,3220.6,2.41384177]
[1641626593316,0.79126177,3220.8,3220.6,3.68427131]
[1641626593719,0.79126177,3220.8,3220.6,2.13233177]
[1641626594118,0.79126177,3220.8,3220.6,1.63666783]
[1641626594320,0.79126177,3220.7,3220.6,0.86190223]
[1641626594520,2.29126177,3220.7,3220.0,1.06094161]
[1641626594720,4.0,3220.3,3220.0,0.35864161]
[1641626594920,1.5,3220.1,3220.0,0.02684161]
[1641626595119,2.2462,3220.1,3219.3,2.58255201]
[1641626595322,5.5,3219.4,3219.0,3.22819001]
[1641626595520,1.5,3219.1,3219.0,2.62419001]
[1641626595721,6.470178,3219.3,3219.0,2.62419001]
[1641626595921,6.470178,3219.3,3218.8,6.17519903]
[1641626596122,1.5,3219.3,3219.1,2.59066285]
[1641626596324,1.5,3219.3,3218.8,2.62419001]
[1641626596521,4.0,3218.9,3218.8,2.62419001]
[1641626596921,4.0,3218.9,3218.8,1.99039001]
[1641626597523,6.423238,3218.9,3218.6,3.55100902]
[1641626597724,34.60095183,3218.8,3218.6,3.55100902]
[1641626598125,34.60095183,3218.8,3218.1,2.00479]
[1641626598726,34.60095183,3218.8,3218.2,0.640787]
[1641626598928,34.60095183,3218.8,3218.2,0.905575]
[1641626599127,34.60095183,3218.8,3218.1,2.00479]
[1641626600429,34.60095183,3218.8,3218.1,2.269578]
[1641626602029,34.60095183,3218.8,3218.1,2.910365]
[1641626610651,2.423238,3218.9,3218.1,2.910365]
[1641626610850,2.00479,3218.9,3218.1,2.910365]
[1641626611851,0.418448,3218.8,3218.1,2.00479]
[1641626612054,1.112648,3218.8,3218.1,2.00479]
[1641626613053,1.112648,3218.8,3218.2,0.640787]
[1641626613653,1.112648,3218.8,3218.1,2.00479]
[1641626613856,4.0,3218.3,3218.1,2.00479]
[1641626615355,4.0,3218.3,3217.7,1.0428785]
[1641626615556,2.00479,3218.2,3217.7,1.0428785]
[1641626615755,4.0,3217.8,3217.7,1.0428785]
[1641626615956,4.867,3217.8,3217.7,1.0428785]
[1641626616555,0.867,3217.8,3217.7,1.0428785]
[1641626617857,0.867,3217.8,3217.4,2.00479]
[1641626618860,0.867,3217.8,3217.5,0.640787]
[1641626619059,0.418448,3218.1,3217.5,0.640787]
[1641626619660,36.71309064,3218.2,3217.6,0.264788]
[1641626619862,2.00479,3218.2,3217.6,2.4798126]
[1641626621263,2.423238,3218.2,3217.6,0.6616]
[1641626621464,2.423238,3218.2,3217.6,0.7778147]
[1641626622465,2.423238,3218.2,3217.6,1.4186017]
[1641626622665,2.423238,3218.2,3217.6,0.640787]
[1641626622866,2.423238,3218.2,3217.4,3.55830872]
[1641626624468,6.423238,3218.2,3217.4,3.55830872]
[1641626625168,6.423238,3218.2,3217.5,0.640787]
[1641626626767,6.423238,3218.2,3217.6,0.264788]
[1641626627067,6.00479,3218.2,3217.6,0.264788]
[1641626627866,2.00479,3218.2,3217.6,0.264788]
[1641626628067,2.00479,3218.2,3217.8,1.55333291]
[1641626628268,2.00479,3218.2,3217.6,3.05341736]
[1641626628468,2.00479,3218.9,3218.1,3.05308201]
[1641626628669,2.00479,3218.9,3218.2,0.640787]
[1641626628869,2.00479,3218.9,3218.6,1.55292766]
[1641626630069,2.00479,3219.3,3218.7,0.264788]
[1641626630271,2.00479,3219.3,3218.7,0.957988]
[1641626631069,2.00479,3219.3,3218.7,2.13414812]
[1641626633872,0.418448,3219.2,3218.7,2.13414812]
[1641626634071,0.418448,3219.2,3218.7,1.17616012]
[1641626638278,2.00479,3219.3,3218.7,1.17616012]
[1641626638478,2.00479,3219.3,3218.8,1.55281914]
[1641626638679,2.00479,3219.3,3218.7,1.17616012]
[1641626638879,2.423238,3219.3,3218.7,1.17616012]
[1641626639679,3.051738,3219.3,3218.7,1.17616012]
[1641626640981,3.051738,3219.3,3218.8,0.264788]
[1641626641180,3.051738,3219.3,3218.7,1.17616012]
[1641626643987,4.0,3218.8,3218.7,1.17616012]
[1641626644189,4.0,3219.1,3218.0,0.7778147]
[1641626644389,1.5,3219.2,3218.0,0.7778147]
[1641626645088,1.5,3219.2,3218.1,0.90847402]
[1641626645490,0.78876123,3219.1,3218.1,0.90847402]
[1641626645692,2.00479,3218.3,3218.1,0.90847402]
[1641626647191,0.78876123,3219.0,3218.2,0.264788]
[1641626647391,0.78876123,3219.0,3218.2,1.217188]
[1641626647793,0.78876123,3219.0,3218.7,2.00479]
[1641626647992,0.78876123,3219.3,3218.8,0.640787]
[1641626648192,0.78876123,3219.3,3218.9,1.04259241]
[1641626648391,0.78876123,3219.3,3218.9,1.80839241]
[1641626648793,0.78876123,3219.3,3219.0,0.264788]
[1641626649193,0.78876123,3219.4,3219.0,0.264788]
[1641626650594,2.00479,3219.5,3219.0,0.264788]
[1641626651794,0.78876123,3219.4,3219.0,0.264788]
[1641626652796,0.78876123,3219.3,3219.0,0.264788]